Department Family,Entity,Date,Expense type,Expense area,Supplier,Transaction number,Amount
BEIS,ACAS,26/05/2022,EXTERNAL LEARNING,ODHR,JELLYFISH UK LIMITED,POIN512,598.8
BEIS,ACAS,30/05/2022,LEARNING RESOURCE MATERIALS,DELIVERY,VIDEO ARTS LTD,POIN513,16200
BEIS,ACAS,30/05/2022,STAFF RECRUITMENT COSTS,ODHR,HAYS RECRUITMENT,POIN514,2132.4
BEIS,ACAS,30/05/2022,STAFF RECRUITMENT COSTS,ODHR,HAYS RECRUITMENT,POIN515,2659.56
BEIS,ACAS,27/05/2022,EXTERNAL LEARNING,ODHR,HEMSLEY FRASER GROUP LTD,POIN516,1080
BEIS,ACAS,31/05/2022,AGENCY STAFF,ODHR,ALEXANDER MANN SOLUTIONS LTD,POIN517,4003.44
BEIS,ACAS,31/05/2022,PROFESSIONAL FEES,DELIVERY,NCFE,POIN518,350
BEIS,ACAS,31/05/2022,CONTRACTOR OFF-PAYROLL IN IR35,DDAT,ALEXANDER MANN SOLUTIONS LTD,POIN519,2833.3
BEIS,ACAS,06/06/2022,OCCUPATIONAL HEALTH SERVICE,FEP,POSTURITE LTD,POIN520,327.55
BEIS,ACAS,27/05/2022,STAFF WELFARE,ODHR,ROYAL NATIONAL INSTITUTE FOR THE DEAF,POIN521,780
BEIS,ACAS,31/05/2022,EXTERNAL LEARNING,ODHR,GOVERNMENT EVENTS,POIN522,427.2
BEIS,ACAS,05/05/2022,AGENCY STAFF,ODHR,ALEXANDER MANN SOLUTIONS LTD,POIN523,4003.44
BEIS,ACAS,27/05/2022,OTHER PAYROLL COSTS,FEP,MHR INTERNATIONAL UK LTD,POIN524,19170.6
BEIS,ACAS,31/05/2022,AGENCY STAFF,SPPC,ALEXANDER MANN SOLUTIONS LTD,POIN525,728.36
BEIS,ACAS,07/06/2022,OCCUPATIONAL HEALTH SERVICE,FEP,POSTURITE LTD,POIN526,325.99
BEIS,ACAS,09/06/2022,AGENCY STAFF,ODHR,ALEXANDER MANN SOLUTIONS LTD,POIN528,3202.75
BEIS,ACAS,09/06/2022,PROFESSIONAL FEES,FEP,UK SHARED BUSINESS SERVICES LTD,POIN529,2600
BEIS,ACAS,08/06/2022,EXTERNAL LEARNING,ODHR,CAMBRIDGE EMPLOYMENT LAW,POIN530,300
BEIS,ACAS,31/05/2022,PROFESSIONAL FEES,DELIVERY,LANGUAGE EMPIRE LTD,POIN532,3988.2
BEIS,ACAS,31/05/2022,PROFESSIONAL FEES,DELIVERY,LANGUAGE EMPIRE LTD,POIN532,1486.19
BEIS,ACAS,31/05/2022,PROFESSIONAL FEES,DDAT,TISSKI LTD,POIN533,5112
BEIS,ACAS,08/06/2022,COMPUTER HARDWARE,DDAT,RESTORE TECHNOLOGY,POIN534,837
BEIS,ACAS,08/06/2022,COMPUTER HARDWARE,DDAT,RESTORE TECHNOLOGY,POIN534,93
BEIS,ACAS,01/04/2022,SOFTWARE & LICENCES,DDAT,BROADBAND VISUAL COMMUNICATIONS LTD,POIN535,2106
BEIS,ACAS,01/04/2022,SOFTWARE & LICENCES,DDAT,BROADBAND VISUAL COMMUNICATIONS LTD,POIN535,234
BEIS,ACAS,01/04/2022,SOFTWARE & LICENCES,DDAT,BROADBAND VISUAL COMMUNICATIONS LTD,POIN535,2700
BEIS,ACAS,01/04/2022,SOFTWARE & LICENCES,DDAT,BROADBAND VISUAL COMMUNICATIONS LTD,POIN535,300
BEIS,ACAS,01/04/2022,PROFESSIONAL FEES,DDAT,BROADBAND VISUAL COMMUNICATIONS LTD,POIN535,5700
BEIS,ACAS,13/06/2022,OTHER PAYROLL COSTS,FEP,MHR INTERNATIONAL UK LTD,POIN536,1560
BEIS,ACAS,13/06/2022,OTHER PAYROLL COSTS,FEP,MHR INTERNATIONAL UK LTD,POIN536,240
BEIS,ACAS,30/04/2022,PROFESSIONAL FEES,DDAT,VERSION 1 SOLUTIONS LTD,POIN537,6489.96
BEIS,ACAS,30/04/2022,PROFESSIONAL FEES,DDAT,VERSION 1 SOLUTIONS LTD,POIN537,0.04
BEIS,ACAS,13/06/2022,PROFESSIONAL FEES,DDAT,VERSION 1 SOLUTIONS LTD,POIN538,6489.96
BEIS,ACAS,13/06/2022,PROFESSIONAL FEES,DDAT,VERSION 1 SOLUTIONS LTD,POIN538,0.04
BEIS,ACAS,09/06/2022,SOFTWARE & LICENCES,DDAT,ATOS IT SERVICES UK LIMITED,POIN540,2406
BEIS,ACAS,09/06/2022,SOFTWARE & LICENCES,DDAT,ATOS IT SERVICES UK LIMITED,POIN540,18000
BEIS,ACAS,10/05/2022,EXTERNAL LEARNING,ODHR,DODS GROUP LTD,POIN541,354
BEIS,ACAS,08/06/2022,SOFTWARE & LICENCES,DDAT,ATOS IT SERVICES UK LIMITED,POIN542,2506.25
BEIS,ACAS,08/06/2022,SOFTWARE & LICENCES,DDAT,ATOS IT SERVICES UK LIMITED,POIN542,11466.24
BEIS,ACAS,08/06/2022,TELEPHONES,DDAT,ATOS IT SERVICES UK LIMITED,POIN542,41.98
BEIS,ACAS,08/06/2022,SOFTWARE & LICENCES,DDAT,ATOS IT SERVICES UK LIMITED,POIN542,88.72
BEIS,ACAS,08/06/2022,TELEPHONES,DDAT,ATOS IT SERVICES UK LIMITED,POIN542,11.95
BEIS,ACAS,09/06/2022,PROFESSIONAL FEES,DDAT,ATOS IT SERVICES UK LIMITED,POIN543,4930.79
BEIS,ACAS,31/05/2022,PROFESSIONAL FEES,DDAT,VERSION 1 SOLUTIONS LTD,POIN544,493.21
BEIS,ACAS,31/05/2022,PROFESSIONAL FEES,DDAT,VERSION 1 SOLUTIONS LTD,POIN545,7069.25
BEIS,ACAS,01/06/2022,PROFESSIONAL FEES,DDAT,SIRIUS OPEN SOURCE LIMITED,POIN546,1792.61
BEIS,ACAS,09/06/2022,CONTRACTOR OFF-PAYROLL IN IR35,DDAT,ALEXANDER MANN SOLUTIONS LTD,POIN547,2833.3
BEIS,ACAS,10/06/2022,PROFESSIONAL FEES,DDAT,BIG BLUE DOOR,POIN548,900
BEIS,ACAS,07/06/2022,EXTERNAL LEARNING,ODHR,PSYSOFT LTD,POIN549,414
BEIS,ACAS,15/06/2022,TRAINERS & GUEST SPEAKERS,ODHR,PAULINE HUGHES LIMITED,POIN550,1800
BEIS,ACAS,13/06/2022,OCCUPATIONAL HEALTH SERVICE,FEP,FLEXIFORM BUSINESS FURNITURE LTD,POIN552,327.82
BEIS,ACAS,26/05/2022,PROFESSIONAL FEES,DDAT,DEPARTMENT FOR BUSINESS ENERGY AND INDU,POIN553,190.31
BEIS,ACAS,26/05/2022,PROFESSIONAL FEES,DDAT,DEPARTMENT FOR BUSINESS ENERGY AND INDU,POIN553,278.64
BEIS,ACAS,26/05/2022,PROFESSIONAL FEES,DDAT,DEPARTMENT FOR BUSINESS ENERGY AND INDU,POIN553,280.48
BEIS,ACAS,26/05/2022,PROFESSIONAL FEES,DDAT,DEPARTMENT FOR BUSINESS ENERGY AND INDU,POIN553,280.48
BEIS,ACAS,26/05/2022,PROFESSIONAL FEES,DDAT,DEPARTMENT FOR BUSINESS ENERGY AND INDU,POIN553,282.97
BEIS,ACAS,26/05/2022,PROFESSIONAL FEES,DDAT,DEPARTMENT FOR BUSINESS ENERGY AND INDU,POIN553,282.97
BEIS,ACAS,26/05/2022,PROFESSIONAL FEES,DDAT,DEPARTMENT FOR BUSINESS ENERGY AND INDU,POIN553,282.97
BEIS,ACAS,26/05/2022,PROFESSIONAL FEES,DDAT,DEPARTMENT FOR BUSINESS ENERGY AND INDU,POIN553,282.97
BEIS,ACAS,26/05/2022,PROFESSIONAL FEES,DDAT,DEPARTMENT FOR BUSINESS ENERGY AND INDU,POIN553,282.97
BEIS,ACAS,15/06/2022,PROFESSIONAL FEES,DDAT,RESTORE TECHNOLOGY,POIN554,46.8
BEIS,ACAS,15/06/2022,PROFESSIONAL FEES,DDAT,RESTORE TECHNOLOGY,POIN554,117
BEIS,ACAS,15/06/2022,PROFESSIONAL FEES,DDAT,RESTORE TECHNOLOGY,POIN554,15.6
BEIS,ACAS,15/06/2022,PROFESSIONAL FEES,DDAT,RESTORE TECHNOLOGY,POIN554,90
BEIS,ACAS,15/06/2022,PROFESSIONAL FEES,DDAT,RESTORE TECHNOLOGY,POIN554,30.6
BEIS,ACAS,15/06/2022,COURIERS,DDAT,RESTORE TECHNOLOGY,POIN554,306
BEIS,ACAS,13/06/2022,OCCUPATIONAL HEALTH SERVICE,FEP,FLEXIFORM BUSINESS FURNITURE LTD,POIN555,322.64
BEIS,ACAS,16/06/2022,CONTRACTOR OFF-PAYROLL IN IR35,DDAT,ALEXANDER MANN SOLUTIONS LTD,POIN556,3541.62
BEIS,ACAS,15/06/2022,SOFTWARE & LICENCES,DDAT,ATOS IT SERVICES UK LIMITED,POIN557,2406
BEIS,ACAS,31/05/2022,MANAGED SERVICE Off-PAYROLL WK,DELIVERY,OPENCAST SOFTWARE EUROPE LTD,POIN558,133246.2
BEIS,ACAS,31/05/2022,MANAGED SERVICE Off-PAYROLL WK,DELIVERY,TISSKI LTD,POIN559,33288
BEIS,ACAS,16/06/2022,AGENCY STAFF,ODHR,ALEXANDER MANN SOLUTIONS LTD,POIN560,4003.44
BEIS,ACAS,13/06/2022,PROFESSIONAL FEES,FEP,GOVERNMENT PROPERTY AGENCY,POIN561,360
BEIS,ACAS,26/05/2022,PROFESSIONAL FEES,FEP,GOVERNMENT PROPERTY AGENCY,POIN562,360
BEIS,ACAS,16/06/2022,AGENCY STAFF,SPPC,ALEXANDER MANN SOLUTIONS LTD,POIN563,728.36
BEIS,ACAS,22/06/2022,EXTERNAL LEARNING,ODHR,DODS GROUP LTD,POIN564,300
BEIS,ACAS,16/06/2022,CONTRACTOR OFF-PAYROLL IN IR35,DELIVERY,ALEXANDER MANN SOLUTIONS LTD,POIN565,2520.24
BEIS,ACAS,16/06/2022,CONTRACTOR OFF-PAYROLL IN IR35,DELIVERY,ALEXANDER MANN SOLUTIONS LTD,POIN565,1008.1
BEIS,ACAS,14/06/2022,OCCUPATIONAL HEALTH SERVICE,FEP,POSTURITE LTD,POIN566,1104.24
BEIS,ACAS,17/06/2022,EVALUATION OF OPS ACTIVITIES,STRATEGY,I F F RESEARCH,POIN567,18000
BEIS,ACAS,23/06/2022,EXTERNAL LEARNING,ODHR,KPMG LLP,POIN570,2640
BEIS,ACAS,10/04/2022,GOVT SOLICITORS FEES,CO,GOVERNMENT LEGAL DEPARTMENT,POIN571,2237.76
BEIS,ACAS,12/05/2022,GOVT SOLICITORS FEES,CO,GOVERNMENT LEGAL DEPARTMENT,POIN572,1269
BEIS,ACAS,31/05/2022,PERSONAL EXPENSE,WALES&MID,NAME / DESCRIPTION WITHHELD,EXPS620,102.6
BEIS,ACAS,31/05/2022,PERSONAL EXPENSE,WALES&MID,NAME / DESCRIPTION WITHHELD,EXPS620,192.6
BEIS,ACAS,31/05/2022,PERSONAL EXPENSE,WALES&MID,NAME / DESCRIPTION WITHHELD,EXPS620,20
BEIS,ACAS,31/05/2022,PERSONAL EXPENSE,WALES&MID,NAME / DESCRIPTION WITHHELD,EXPS620,5
BEIS,ACAS,02/06/2022,PERSONAL EXPENSE,WALES&MID,NAME / DESCRIPTION WITHHELD,EXPS622,561.6
BEIS,ACAS,02/06/2022,PERSONAL EXPENSE,WALES&MID,NAME / DESCRIPTION WITHHELD,EXPS622,20.7
BEIS,ACAS,02/06/2022,PERSONAL EXPENSE,WALES&MID,NAME / DESCRIPTION WITHHELD,EXPS622,7.3
BEIS,ACAS,02/06/2022,PERSONAL EXPENSE,WALES&MID,NAME / DESCRIPTION WITHHELD,EXPS622,5
BEIS,ACAS,02/06/2022,PERSONAL EXPENSE,WALES&MID,NAME / DESCRIPTION WITHHELD,EXPS622,10
BEIS,ACAS,02/06/2022,PERSONAL EXPENSE,WALES&MID,NAME / DESCRIPTION WITHHELD,EXPS622,70
BEIS,ACAS,02/06/2022,PERSONAL EXPENSE,WALES&MID,NAME / DESCRIPTION WITHHELD,EXPS622,10
BEIS,ACAS,31/05/2022,PERSONAL EXPENSE,WALES&MID,NAME / DESCRIPTION WITHHELD,EXPS624,99.45
BEIS,ACAS,31/05/2022,PERSONAL EXPENSE,WALES&MID,NAME / DESCRIPTION WITHHELD,EXPS624,179.1
BEIS,ACAS,31/05/2022,PERSONAL EXPENSE,WALES&MID,NAME / DESCRIPTION WITHHELD,EXPS624,9.95
BEIS,ACAS,31/05/2022,PERSONAL EXPENSE,WALES&MID,NAME / DESCRIPTION WITHHELD,EXPS624,6
BEIS,ACAS,31/05/2022,PERSONAL EXPENSE,WALES&MID,NAME / DESCRIPTION WITHHELD,EXPS624,7.9
BEIS,ACAS,31/05/2022,PERSONAL EXPENSE,WALES&MID,NAME / DESCRIPTION WITHHELD,EXPS624,5
BEIS,ACAS,31/05/2022,PERSONAL EXPENSE,WALES&MID,NAME / DESCRIPTION WITHHELD,EXPS624,35
BEIS,ACAS,31/05/2022,PERSONAL EXPENSE,WALES&MID,NAME / DESCRIPTION WITHHELD,EXPS624,15
BEIS,ACAS,31/05/2022,PERSONAL EXPENSE,WALES&MID,NAME / DESCRIPTION WITHHELD,EXPS624,105
BEIS,ACAS,06/06/2022,PERSONAL EXPENSE,SOUTH&LONDON,NAME / DESCRIPTION WITHHELD,EXPS626,438.3
BEIS,ACAS,06/06/2022,PERSONAL EXPENSE,SOUTH&LONDON,NAME / DESCRIPTION WITHHELD,EXPS626,2
BEIS,ACAS,06/06/2022,PERSONAL EXPENSE,SOUTH&LONDON,NAME / DESCRIPTION WITHHELD,EXPS626,11.2
BEIS,ACAS,06/06/2022,PERSONAL EXPENSE,SOUTH&LONDON,NAME / DESCRIPTION WITHHELD,EXPS626,5
BEIS,ACAS,06/06/2022,PERSONAL EXPENSE,SOUTH&LONDON,NAME / DESCRIPTION WITHHELD,EXPS626,70
BEIS,ACAS,07/06/2022,PERSONAL EXPENSE,SOUTH&LONDON,NAME / DESCRIPTION WITHHELD,EXPS632,8.1
BEIS,ACAS,07/06/2022,PERSONAL EXPENSE,SOUTH&LONDON,NAME / DESCRIPTION WITHHELD,EXPS632,86.4
BEIS,ACAS,07/06/2022,PERSONAL EXPENSE,SOUTH&LONDON,NAME / DESCRIPTION WITHHELD,EXPS632,6.8
BEIS,ACAS,07/06/2022,PERSONAL EXPENSE,SOUTH&LONDON,NAME / DESCRIPTION WITHHELD,EXPS632,20
BEIS,ACAS,07/06/2022,PERSONAL EXPENSE,SOUTH&LONDON,NAME / DESCRIPTION WITHHELD,EXPS632,10
BEIS,ACAS,07/06/2022,PERSONAL EXPENSE,SOUTH&LONDON,NAME / DESCRIPTION WITHHELD,EXPS632,10
BEIS,ACAS,07/06/2022,PERSONAL EXPENSE,SOUTH&LONDON,NAME / DESCRIPTION WITHHELD,EXPS632,70
BEIS,ACAS,07/06/2022,PERSONAL EXPENSE,SOUTH&LONDON,NAME / DESCRIPTION WITHHELD,EXPS632,5
BEIS,ACAS,07/06/2022,PERSONAL EXPENSE,SOUTH&LONDON,NAME / DESCRIPTION WITHHELD,EXPS632,35
BEIS,ACAS,07/06/2022,PERSONAL EXPENSE,SOUTH&LONDON,NAME / DESCRIPTION WITHHELD,EXPS632,10
BEIS,ACAS,07/06/2022,PERSONAL EXPENSE,SOUTH&LONDON,NAME / DESCRIPTION WITHHELD,EXPS632,25
BEIS,ACAS,07/06/2022,PERSONAL EXPENSE,SOUTH&LONDON,NAME / DESCRIPTION WITHHELD,EXPS632,175
BEIS,ACAS,07/06/2022,PERSONAL EXPENSE,SOUTH&LONDON,NAME / DESCRIPTION WITHHELD,EXPS632,20
BEIS,ACAS,07/06/2022,PERSONAL EXPENSE,SCOTLAND,NAME / DESCRIPTION WITHHELD,EXPS634,283.5
BEIS,ACAS,07/06/2022,PERSONAL EXPENSE,SCOTLAND,NAME / DESCRIPTION WITHHELD,EXPS634,24
BEIS,ACAS,07/06/2022,PERSONAL EXPENSE,SCOTLAND,NAME / DESCRIPTION WITHHELD,EXPS634,5
BEIS,ACAS,07/06/2022,PERSONAL EXPENSE,SCOTLAND,NAME / DESCRIPTION WITHHELD,EXPS634,25
BEIS,ACAS,07/06/2022,PERSONAL EXPENSE,SCOTLAND,NAME / DESCRIPTION WITHHELD,EXPS634,35
BEIS,ACAS,08/06/2022,PERSONAL EXPENSE,SOUTH&LONDON,NAME / DESCRIPTION WITHHELD,EXPS637,59.4
BEIS,ACAS,08/06/2022,PERSONAL EXPENSE,SOUTH&LONDON,NAME / DESCRIPTION WITHHELD,EXPS637,47.7
BEIS,ACAS,08/06/2022,PERSONAL EXPENSE,SOUTH&LONDON,NAME / DESCRIPTION WITHHELD,EXPS637,417.6
BEIS,ACAS,08/06/2022,PERSONAL EXPENSE,SOUTH&LONDON,NAME / DESCRIPTION WITHHELD,EXPS637,98.55
BEIS,ACAS,08/06/2022,PERSONAL EXPENSE,SOUTH&LONDON,NAME / DESCRIPTION WITHHELD,EXPS637,5
BEIS,ACAS,08/06/2022,PERSONAL EXPENSE,SOUTH&LONDON,NAME / DESCRIPTION WITHHELD,EXPS637,5
BEIS,ACAS,08/06/2022,PERSONAL EXPENSE,SOUTH&LONDON,NAME / DESCRIPTION WITHHELD,EXPS637,20
BEIS,ACAS,08/06/2022,PERSONAL EXPENSE,SOUTH&LONDON,NAME / DESCRIPTION WITHHELD,EXPS637,25
BEIS,ACAS,08/06/2022,PERSONAL EXPENSE,SOUTH&LONDON,NAME / DESCRIPTION WITHHELD,EXPS637,25
BEIS,ACAS,08/06/2022,PERSONAL EXPENSE,SOUTH&LONDON,NAME / DESCRIPTION WITHHELD,EXPS637,10
BEIS,ACAS,08/06/2022,PERSONAL EXPENSE,SOUTH&LONDON,NAME / DESCRIPTION WITHHELD,EXPS637,35
BEIS,ACAS,08/06/2022,PERSONAL EXPENSE,SOUTH&LONDON,NAME / DESCRIPTION WITHHELD,EXPS637,35
BEIS,ACAS,08/06/2022,PERSONAL EXPENSE,NORTH&MID,NAME / DESCRIPTION WITHHELD,EXPS639,328.05
BEIS,ACAS,08/06/2022,PERSONAL EXPENSE,NORTH&MID,NAME / DESCRIPTION WITHHELD,EXPS639,35.1
BEIS,ACAS,08/06/2022,PERSONAL EXPENSE,NORTH&MID,NAME / DESCRIPTION WITHHELD,EXPS639,0.5
BEIS,ACAS,08/06/2022,PERSONAL EXPENSE,NORTH&MID,NAME / DESCRIPTION WITHHELD,EXPS639,10
BEIS,ACAS,08/06/2022,PERSONAL EXPENSE,NORTH&MID,NAME / DESCRIPTION WITHHELD,EXPS639,10
BEIS,ACAS,08/06/2022,PERSONAL EXPENSE,NORTH&MID,NAME / DESCRIPTION WITHHELD,EXPS639,10
BEIS,ACAS,08/06/2022,PERSONAL EXPENSE,NORTH&MID,NAME / DESCRIPTION WITHHELD,EXPS639,10
BEIS,ACAS,08/06/2022,PERSONAL EXPENSE,NORTH&MID,NAME / DESCRIPTION WITHHELD,EXPS639,60
BEIS,ACAS,08/06/2022,PERSONAL EXPENSE,NORTH&MID,NAME / DESCRIPTION WITHHELD,EXPS639,55.3
BEIS,ACAS,14/06/2022,PERSONAL EXPENSE,SPPC,NAME / DESCRIPTION WITHHELD,EXPS660,261.29
BEIS,ACAS,14/06/2022,PERSONAL EXPENSE,WALES&MID,NAME / DESCRIPTION WITHHELD,EXPS662,38.7
BEIS,ACAS,14/06/2022,PERSONAL EXPENSE,WALES&MID,NAME / DESCRIPTION WITHHELD,EXPS662,174.6
BEIS,ACAS,14/06/2022,PERSONAL EXPENSE,WALES&MID,NAME / DESCRIPTION WITHHELD,EXPS662,70
BEIS,ACAS,14/06/2022,PERSONAL EXPENSE,WALES&MID,NAME / DESCRIPTION WITHHELD,EXPS662,5
BEIS,ACAS,14/06/2022,PERSONAL EXPENSE,WALES&MID,NAME / DESCRIPTION WITHHELD,EXPS662,35
BEIS,ACAS,24/06/2022,PERSONAL EXPENSE,SOUTH&LONDON,NAME / DESCRIPTION WITHHELD,EXPS693,180.9
BEIS,ACAS,24/06/2022,PERSONAL EXPENSE,SOUTH&LONDON,NAME / DESCRIPTION WITHHELD,EXPS693,15
BEIS,ACAS,24/06/2022,PERSONAL EXPENSE,SOUTH&LONDON,NAME / DESCRIPTION WITHHELD,EXPS693,5
BEIS,ACAS,24/06/2022,PERSONAL EXPENSE,SOUTH&LONDON,NAME / DESCRIPTION WITHHELD,EXPS693,35
BEIS,ACAS,24/06/2022,PERSONAL EXPENSE,SOUTH&LONDON,NAME / DESCRIPTION WITHHELD,EXPS693,10
BEIS,ACAS,24/06/2022,PERSONAL EXPENSE,SOUTH&LONDON,NAME / DESCRIPTION WITHHELD,EXPS693,26.2
BEIS,ACAS,28/06/2022,PERSONAL EXPENSE,NORTH&MID,NAME / DESCRIPTION WITHHELD,EXPS698,274.95
BEIS,ACAS,28/06/2022,PERSONAL EXPENSE,NORTH&MID,NAME / DESCRIPTION WITHHELD,EXPS698,14.4
BEIS,ACAS,28/06/2022,PERSONAL EXPENSE,NORTH&MID,NAME / DESCRIPTION WITHHELD,EXPS698,10
BEIS,ACAS,28/06/2022,PERSONAL EXPENSE,NORTH&MID,NAME / DESCRIPTION WITHHELD,EXPS698,15
BEIS,ACAS,28/06/2022,PERSONAL EXPENSE,NORTH&MID,NAME / DESCRIPTION WITHHELD,EXPS698,5
BEIS,ACAS,28/06/2022,PERSONAL EXPENSE,NORTH&MID,NAME / DESCRIPTION WITHHELD,EXPS698,80
BEIS,ACAS,28/06/2022,PERSONAL EXPENSE,NORTH&MID,NAME / DESCRIPTION WITHHELD,EXPS698,48
BEIS,ACAS,27/06/2022,PERSONAL EXPENSE,CAC,NAME / DESCRIPTION WITHHELD,EXPS704,485.98
BEIS,ACAS,27/06/2022,PERSONAL EXPENSE,CAC,NAME / DESCRIPTION WITHHELD,EXPS704,23.4
BEIS,ACAS,27/06/2022,PERSONAL EXPENSE,CAC,NAME / DESCRIPTION WITHHELD,EXPS704,26.24
BEIS,ACAS,27/06/2022,PERSONAL EXPENSE,CAC,NAME / DESCRIPTION WITHHELD,EXPS704,23.1
BEIS,ACAS,27/06/2022,PERSONAL EXPENSE,CAC,NAME / DESCRIPTION WITHHELD,EXPS704,85.2
BEIS,ACAS,27/06/2022,PERSONAL EXPENSE,CAC,NAME / DESCRIPTION WITHHELD,EXPS704,105
BEIS,ACAS,27/06/2022,PERSONAL EXPENSE,CAC,NAME / DESCRIPTION WITHHELD,EXPS704,15
BEIS,ACAS,20/06/2022,PERSONAL EXPENSE,WALES&MID,NAME / DESCRIPTION WITHHELD,EXPS705,235.8
BEIS,ACAS,20/06/2022,PERSONAL EXPENSE,WALES&MID,NAME / DESCRIPTION WITHHELD,EXPS705,45
BEIS,ACAS,20/06/2022,PERSONAL EXPENSE,WALES&MID,NAME / DESCRIPTION WITHHELD,EXPS705,15
BEIS,ACAS,20/06/2022,PERSONAL EXPENSE,WALES&MID,NAME / DESCRIPTION WITHHELD,EXPS705,5
BEIS,ACAS,20/06/2022,PERSONAL EXPENSE,WALES&MID,NAME / DESCRIPTION WITHHELD,EXPS705,40
BEIS,ACAS,20/06/2022,PERSONAL EXPENSE,WALES&MID,NAME / DESCRIPTION WITHHELD,EXPS705,105
BEIS,ACAS,29/04/2022,EXTERNAL LEARNING - CSL,ODHR,KPMG LLP,PINV727,1288.8
BEIS,ACAS,27/05/2022,LEARNING RESOURCE MATERIALS,ODHR,MHR INTERNATIONAL UK LTD,PINV728,685.26
BEIS,ACAS,31/05/2022,AGENCY STAFF,NORTH&MID,ALEXANDER MANN SOLUTIONS LTD,PINV729,644.69
BEIS,ACAS,31/05/2022,AGENCY STAFF,NORTH&MID,ALEXANDER MANN SOLUTIONS LTD,PINV730,522.72
BEIS,ACAS,01/06/2022,PUBLICITY,STRATEGY,CISION,PINV731,2670
BEIS,ACAS,01/06/2022,SOFTWARE & LICENCES,DDAT,CENTURYLINK COMMUNICATIONS UK LIMITED,PINV732,3248.53
BEIS,ACAS,01/06/2022,SOFTWARE & LICENCES,DDAT,CENTURYLINK COMMUNICATIONS UK LIMITED,PINV732,360.95
BEIS,ACAS,01/06/2022,TELEPHONES,DDAT,CENTURYLINK COMMUNICATIONS UK LIMITED,PINV732,1163.1
BEIS,ACAS,01/06/2022,TELEPHONES,DDAT,CENTURYLINK COMMUNICATIONS UK LIMITED,PINV732,129.22
BEIS,ACAS,06/06/2022,REFUNDS,WALES&MID,INDEPENDENT DIGITAL NEWS AND MEDIA LTD,PINV734,4110
BEIS,ACAS,06/06/2022,ACAS COUNCILLORS,CAC,HM COURTS & TRIBUNAL SERVICE - MOJ,PINV735,4012.89
BEIS,ACAS,06/06/2022,ACAS COUNCILLORS,CAC,HM COURTS & TRIBUNAL SERVICE - MOJ,PINV735,3118.38
BEIS,ACAS,07/06/2022,OCCUPATIONAL HEALTH SERVICE,ODHR,HEALTH MANAGEMENT LTD,PINV738,2365.5
BEIS,ACAS,30/04/2022,EVALUATION OF OPS ACTIVITIES,DELIVERY,I F F RESEARCH,PINV739,81570
BEIS,ACAS,31/05/2022,SOFTWARE & LICENCES,FEP,ATAMIS LTD,PINV741,4560
BEIS,ACAS,31/05/2022,SOFTWARE & LICENCES,FEP,ATAMIS LTD,PINV742,720
BEIS,ACAS,31/05/2022,SOFTWARE & LICENCES,FEP,ATAMIS LTD,PINV743,5160
BEIS,ACAS,03/06/2022,EXHIBITION COSTS,STRATEGY,HH GLOBAL,PINV744,267.96
BEIS,ACAS,31/05/2022,PUBLIC TRANSPORT & PARKING,NORTH&MID,CORPORATE TRAVEL MANAGEMENTLIMITED,PINV745,3.12
BEIS,ACAS,31/05/2022,PUBLIC TRANSPORT & PARKING,NORTH&MID,CORPORATE TRAVEL MANAGEMENTLIMITED,PINV745,3.13
BEIS,ACAS,31/05/2022,PUBLIC TRANSPORT & PARKING,SOUTH&LONDON,CORPORATE TRAVEL MANAGEMENTLIMITED,PINV745,-14.1
BEIS,ACAS,31/05/2022,HOTEL EXPENSES,NORTH&MID,CORPORATE TRAVEL MANAGEMENTLIMITED,PINV745,78.46
BEIS,ACAS,31/05/2022,HOTEL EXPENSES,SOUTH&LONDON,CORPORATE TRAVEL MANAGEMENTLIMITED,PINV745,66.37
BEIS,ACAS,31/05/2022,HOTEL EXPENSES,STRATEGY,CORPORATE TRAVEL MANAGEMENTLIMITED,PINV745,1.12
BEIS,ACAS,31/05/2022,PUBLIC TRANSPORT & PARKING,SPPC,CORPORATE TRAVEL MANAGEMENTLIMITED,PINV745,85.5
BEIS,ACAS,31/05/2022,HOTEL EXPENSES,STRATEGY,CORPORATE TRAVEL MANAGEMENTLIMITED,PINV745,1.12
BEIS,ACAS,31/05/2022,PUBLIC TRANSPORT & PARKING,DDAT,CORPORATE TRAVEL MANAGEMENTLIMITED,PINV745,78.65
BEIS,ACAS,31/05/2022,PUBLIC TRANSPORT & PARKING,DELIVERY,CORPORATE TRAVEL MANAGEMENTLIMITED,PINV745,67.35
BEIS,ACAS,31/05/2022,PUBLIC TRANSPORT & PARKING,DELIVERY,CORPORATE TRAVEL MANAGEMENTLIMITED,PINV745,67.35
BEIS,ACAS,31/05/2022,HOTEL EXPENSES,DDAT,CORPORATE TRAVEL MANAGEMENTLIMITED,PINV745,93.12
BEIS,ACAS,31/05/2022,PUBLIC TRANSPORT & PARKING,SOUTH&LONDON,CORPORATE TRAVEL MANAGEMENTLIMITED,PINV745,40.65
BEIS,ACAS,31/05/2022,PUBLIC TRANSPORT & PARKING,SOUTH&LONDON,CORPORATE TRAVEL MANAGEMENTLIMITED,PINV745,40.65
BEIS,ACAS,31/05/2022,PUBLIC TRANSPORT & PARKING,SOUTH&LONDON,CORPORATE TRAVEL MANAGEMENTLIMITED,PINV745,72.35
BEIS,ACAS,31/05/2022,PUBLIC TRANSPORT & PARKING,DELIVERY,CORPORATE TRAVEL MANAGEMENTLIMITED,PINV745,294.55
BEIS,ACAS,31/05/2022,PUBLIC TRANSPORT & PARKING,DELIVERY,CORPORATE TRAVEL MANAGEMENTLIMITED,PINV745,99.35
BEIS,ACAS,31/05/2022,PUBLIC TRANSPORT & PARKING,DDAT,CORPORATE TRAVEL MANAGEMENTLIMITED,PINV745,258.15
BEIS,ACAS,31/05/2022,PUBLIC TRANSPORT & PARKING,CO,CORPORATE TRAVEL MANAGEMENTLIMITED,PINV745,37.65
BEIS,ACAS,31/05/2022,PUBLIC TRANSPORT & PARKING,CO,CORPORATE TRAVEL MANAGEMENTLIMITED,PINV745,37.05
BEIS,ACAS,31/05/2022,HOTEL EXPENSES,SOUTH&LONDON,CORPORATE TRAVEL MANAGEMENTLIMITED,PINV745,71.12
BEIS,ACAS,31/05/2022,HOTEL EXPENSES,SOUTH&LONDON,CORPORATE TRAVEL MANAGEMENTLIMITED,PINV745,71.12
BEIS,ACAS,31/05/2022,PUBLIC TRANSPORT & PARKING,DELIVERY,CORPORATE TRAVEL MANAGEMENTLIMITED,PINV745,21.05
BEIS,ACAS,31/05/2022,PUBLIC TRANSPORT & PARKING,DELIVERY,CORPORATE TRAVEL MANAGEMENTLIMITED,PINV745,15.9
BEIS,ACAS,31/05/2022,HOTEL EXPENSES,SPPC,CORPORATE TRAVEL MANAGEMENTLIMITED,PINV745,480.12
BEIS,ACAS,31/05/2022,HOTEL EXPENSES,SPPC,CORPORATE TRAVEL MANAGEMENTLIMITED,PINV745,652.12
BEIS,ACAS,31/05/2022,HOTEL EXPENSES,STRATEGY,CORPORATE TRAVEL MANAGEMENTLIMITED,PINV745,199.12
BEIS,ACAS,31/05/2022,PUBLIC TRANSPORT & PARKING,DDAT,CORPORATE TRAVEL MANAGEMENTLIMITED,PINV745,144.75
BEIS,ACAS,31/05/2022,HOTEL EXPENSES,SPPC,CORPORATE TRAVEL MANAGEMENTLIMITED,PINV745,85.62
BEIS,ACAS,31/05/2022,PUBLIC TRANSPORT & PARKING,SPPC,CORPORATE TRAVEL MANAGEMENTLIMITED,PINV745,189
BEIS,ACAS,31/05/2022,PUBLIC TRANSPORT & PARKING,DDAT,CORPORATE TRAVEL MANAGEMENTLIMITED,PINV745,95.25
BEIS,ACAS,31/05/2022,PUBLIC TRANSPORT & PARKING,DELIVERY,CORPORATE TRAVEL MANAGEMENTLIMITED,PINV745,132.65
BEIS,ACAS,31/05/2022,PUBLIC TRANSPORT & PARKING,DDAT,CORPORATE TRAVEL MANAGEMENTLIMITED,PINV745,167.15
BEIS,ACAS,31/05/2022,PUBLIC TRANSPORT & PARKING,SPPC,CORPORATE TRAVEL MANAGEMENTLIMITED,PINV745,177.4
BEIS,ACAS,31/05/2022,PUBLIC TRANSPORT & PARKING,SPPC,CORPORATE TRAVEL MANAGEMENTLIMITED,PINV745,129.45
BEIS,ACAS,31/05/2022,PUBLIC TRANSPORT & PARKING,FEP,CORPORATE TRAVEL MANAGEMENTLIMITED,PINV745,93.55
BEIS,ACAS,31/05/2022,PUBLIC TRANSPORT & PARKING,FEP,CORPORATE TRAVEL MANAGEMENTLIMITED,PINV745,76.95
BEIS,ACAS,31/05/2022,PUBLIC TRANSPORT & PARKING,ODHR,CORPORATE TRAVEL MANAGEMENTLIMITED,PINV745,110.75
BEIS,ACAS,31/05/2022,PUBLIC TRANSPORT & PARKING,DELIVERY,CORPORATE TRAVEL MANAGEMENTLIMITED,PINV745,152.15
BEIS,ACAS,31/05/2022,HOTEL EXPENSES,DDAT,CORPORATE TRAVEL MANAGEMENTLIMITED,PINV745,348.57
BEIS,ACAS,31/05/2022,PUBLIC TRANSPORT & PARKING,SOUTH&LONDON,CORPORATE TRAVEL MANAGEMENTLIMITED,PINV745,117.65
BEIS,ACAS,31/05/2022,HOTEL EXPENSES,DDAT,CORPORATE TRAVEL MANAGEMENTLIMITED,PINV745,348.57
BEIS,ACAS,31/05/2022,HOTEL EXPENSES,SOUTH&LONDON,CORPORATE TRAVEL MANAGEMENTLIMITED,PINV745,58.79
BEIS,ACAS,31/05/2022,PUBLIC TRANSPORT & PARKING,DELIVERY,CORPORATE TRAVEL MANAGEMENTLIMITED,PINV745,600.9
BEIS,ACAS,31/05/2022,PUBLIC TRANSPORT & PARKING,DELIVERY,CORPORATE TRAVEL MANAGEMENTLIMITED,PINV745,149.6
BEIS,ACAS,31/05/2022,PUBLIC TRANSPORT & PARKING,WALES&MID,CORPORATE TRAVEL MANAGEMENTLIMITED,PINV745,110.75
BEIS,ACAS,31/05/2022,PUBLIC TRANSPORT & PARKING,DELIVERY,CORPORATE TRAVEL MANAGEMENTLIMITED,PINV745,144.25
BEIS,ACAS,31/05/2022,PUBLIC TRANSPORT & PARKING,NORTH&MID,CORPORATE TRAVEL MANAGEMENTLIMITED,PINV745,20.9
BEIS,ACAS,31/05/2022,HOTEL EXPENSES,DDAT,CORPORATE TRAVEL MANAGEMENTLIMITED,PINV745,77.12
BEIS,ACAS,31/05/2022,PUBLIC TRANSPORT & PARKING,SOUTH&LONDON,CORPORATE TRAVEL MANAGEMENTLIMITED,PINV745,117.65
BEIS,ACAS,31/05/2022,PUBLIC TRANSPORT & PARKING,STRATEGY,CORPORATE TRAVEL MANAGEMENTLIMITED,PINV745,108.05
BEIS,ACAS,31/05/2022,PUBLIC TRANSPORT & PARKING,DELIVERY,CORPORATE TRAVEL MANAGEMENTLIMITED,PINV745,600.9
BEIS,ACAS,31/05/2022,PUBLIC TRANSPORT & PARKING,DELIVERY,CORPORATE TRAVEL MANAGEMENTLIMITED,PINV745,199.2
BEIS,ACAS,31/05/2022,PUBLIC TRANSPORT & PARKING,STRATEGY,CORPORATE TRAVEL MANAGEMENTLIMITED,PINV745,96.75
BEIS,ACAS,31/05/2022,PUBLIC TRANSPORT & PARKING,DELIVERY,CORPORATE TRAVEL MANAGEMENTLIMITED,PINV745,117.65
BEIS,ACAS,31/05/2022,PUBLIC TRANSPORT & PARKING,SOUTH&LONDON,CORPORATE TRAVEL MANAGEMENTLIMITED,PINV745,41.95
BEIS,ACAS,31/05/2022,PUBLIC TRANSPORT & PARKING,SPPC,CORPORATE TRAVEL MANAGEMENTLIMITED,PINV745,253.55
BEIS,ACAS,31/05/2022,HOTEL EXPENSES,WALES&MID,CORPORATE TRAVEL MANAGEMENTLIMITED,PINV745,375.96
BEIS,ACAS,31/05/2022,HOTEL EXPENSES,SOUTH&LONDON,CORPORATE TRAVEL MANAGEMENTLIMITED,PINV745,165.54
BEIS,ACAS,31/05/2022,HOTEL EXPENSES,SOUTH&LONDON,CORPORATE TRAVEL MANAGEMENTLIMITED,PINV745,287.63
BEIS,ACAS,31/05/2022,HOTEL EXPENSES,NORTH&MID,CORPORATE TRAVEL MANAGEMENTLIMITED,PINV745,90.5
BEIS,ACAS,31/05/2022,HOTEL EXPENSES,DDAT,CORPORATE TRAVEL MANAGEMENTLIMITED,PINV745,141.12
BEIS,ACAS,31/05/2022,HOTEL EXPENSES,WALES&MID,CORPORATE TRAVEL MANAGEMENTLIMITED,PINV745,250.96
BEIS,ACAS,31/05/2022,HOTEL EXPENSES,SPPC,CORPORATE TRAVEL MANAGEMENTLIMITED,PINV745,89.12
BEIS,ACAS,31/05/2022,HOTEL EXPENSES,SOUTH&LONDON,CORPORATE TRAVEL MANAGEMENTLIMITED,PINV745,125.96
BEIS,ACAS,31/05/2022,HOTEL EXPENSES,SOUTH&LONDON,CORPORATE TRAVEL MANAGEMENTLIMITED,PINV745,287.63
BEIS,ACAS,31/05/2022,PUBLIC TRANSPORT & PARKING,FEP,CORPORATE TRAVEL MANAGEMENTLIMITED,PINV745,135.45
BEIS,ACAS,31/05/2022,PUBLIC TRANSPORT & PARKING,NORTH&MID,CORPORATE TRAVEL MANAGEMENTLIMITED,PINV745,110.75
BEIS,ACAS,31/05/2022,PUBLIC TRANSPORT & PARKING,NORTH&MID,CORPORATE TRAVEL MANAGEMENTLIMITED,PINV745,139.85
BEIS,ACAS,31/05/2022,HOTEL EXPENSES,SOUTH&LONDON,CORPORATE TRAVEL MANAGEMENTLIMITED,PINV745,89.29
BEIS,ACAS,31/05/2022,HOTEL EXPENSES,WALES&MID,CORPORATE TRAVEL MANAGEMENTLIMITED,PINV745,250.96
BEIS,ACAS,31/05/2022,HOTEL EXPENSES,DELIVERY,CORPORATE TRAVEL MANAGEMENTLIMITED,PINV745,176.12
BEIS,ACAS,31/05/2022,PUBLIC TRANSPORT & PARKING,ODHR,CORPORATE TRAVEL MANAGEMENTLIMITED,PINV745,96.85
BEIS,ACAS,31/05/2022,HOTEL EXPENSES,NORTH&MID,CORPORATE TRAVEL MANAGEMENTLIMITED,PINV745,115.56
BEIS,ACAS,31/05/2022,HOTEL EXPENSES,ODHR,CORPORATE TRAVEL MANAGEMENTLIMITED,PINV745,110.62
BEIS,ACAS,31/05/2022,HOTEL EXPENSES,DELIVERY,CORPORATE TRAVEL MANAGEMENTLIMITED,PINV745,101.12
BEIS,ACAS,31/05/2022,HOTEL EXPENSES,SCOTLAND,CORPORATE TRAVEL MANAGEMENTLIMITED,PINV745,93.12
BEIS,ACAS,31/05/2022,HOTEL EXPENSES,NORTH&MID,CORPORATE TRAVEL MANAGEMENTLIMITED,PINV745,115.56
BEIS,ACAS,31/05/2022,HOTEL EXPENSES,WALES&MID,CORPORATE TRAVEL MANAGEMENTLIMITED,PINV745,93.12
BEIS,ACAS,31/05/2022,HOTEL EXPENSES,SCOTLAND,CORPORATE TRAVEL MANAGEMENTLIMITED,PINV745,63.44
BEIS,ACAS,31/05/2022,HOTEL EXPENSES,DELIVERY,CORPORATE TRAVEL MANAGEMENTLIMITED,PINV745,121.12
BEIS,ACAS,31/05/2022,PUBLIC TRANSPORT & PARKING,DELIVERY,CORPORATE TRAVEL MANAGEMENTLIMITED,PINV745,118.25
BEIS,ACAS,31/05/2022,PUBLIC TRANSPORT & PARKING,NORTH&MID,CORPORATE TRAVEL MANAGEMENTLIMITED,PINV745,50.15
BEIS,ACAS,31/05/2022,PUBLIC TRANSPORT & PARKING,NORTH&MID,CORPORATE TRAVEL MANAGEMENTLIMITED,PINV745,25.45
BEIS,ACAS,31/05/2022,PUBLIC TRANSPORT & PARKING,NORTH&MID,CORPORATE TRAVEL MANAGEMENTLIMITED,PINV745,304.65
BEIS,ACAS,31/05/2022,PUBLIC TRANSPORT & PARKING,SOUTH&LONDON,CORPORATE TRAVEL MANAGEMENTLIMITED,PINV745,112.45
BEIS,ACAS,31/05/2022,PUBLIC TRANSPORT & PARKING,NORTH&MID,CORPORATE TRAVEL MANAGEMENTLIMITED,PINV745,96.1
BEIS,ACAS,31/05/2022,PUBLIC TRANSPORT & PARKING,SOUTH&LONDON,CORPORATE TRAVEL MANAGEMENTLIMITED,PINV745,112.55
BEIS,ACAS,31/05/2022,PUBLIC TRANSPORT & PARKING,SOUTH&LONDON,CORPORATE TRAVEL MANAGEMENTLIMITED,PINV745,245.05
BEIS,ACAS,31/05/2022,PUBLIC TRANSPORT & PARKING,SOUTH&LONDON,CORPORATE TRAVEL MANAGEMENTLIMITED,PINV745,177.15
BEIS,ACAS,31/05/2022,PUBLIC TRANSPORT & PARKING,DELIVERY,CORPORATE TRAVEL MANAGEMENTLIMITED,PINV745,344.6
BEIS,ACAS,31/05/2022,PUBLIC TRANSPORT & PARKING,SOUTH&LONDON,CORPORATE TRAVEL MANAGEMENTLIMITED,PINV745,161.75
BEIS,ACAS,31/05/2022,HOTEL EXPENSES,STRATEGY,CORPORATE TRAVEL MANAGEMENTLIMITED,PINV745,218.12
BEIS,ACAS,31/05/2022,PUBLIC TRANSPORT & PARKING,SOUTH&LONDON,CORPORATE TRAVEL MANAGEMENTLIMITED,PINV745,40.65
BEIS,ACAS,31/05/2022,PUBLIC TRANSPORT & PARKING,WALES&MID,CORPORATE TRAVEL MANAGEMENTLIMITED,PINV745,123.85
BEIS,ACAS,31/05/2022,PUBLIC TRANSPORT & PARKING,DDAT,CORPORATE TRAVEL MANAGEMENTLIMITED,PINV745,107.85
BEIS,ACAS,31/05/2022,PUBLIC TRANSPORT & PARKING,SPPC,CORPORATE TRAVEL MANAGEMENTLIMITED,PINV745,39.75
BEIS,ACAS,31/05/2022,PUBLIC TRANSPORT & PARKING,SPPC,CORPORATE TRAVEL MANAGEMENTLIMITED,PINV745,29.55
BEIS,ACAS,31/05/2022,PUBLIC TRANSPORT & PARKING,FEP,CORPORATE TRAVEL MANAGEMENTLIMITED,PINV745,142.65
BEIS,ACAS,31/05/2022,PUBLIC TRANSPORT & PARKING,DELIVERY,CORPORATE TRAVEL MANAGEMENTLIMITED,PINV745,114.15
BEIS,ACAS,31/05/2022,PUBLIC TRANSPORT & PARKING,ODHR,CORPORATE TRAVEL MANAGEMENTLIMITED,PINV745,39.75
BEIS,ACAS,31/05/2022,PUBLIC TRANSPORT & PARKING,ODHR,CORPORATE TRAVEL MANAGEMENTLIMITED,PINV745,29.35
BEIS,ACAS,31/05/2022,HOTEL EXPENSES,WALES&MID,CORPORATE TRAVEL MANAGEMENTLIMITED,PINV745,111.12
BEIS,ACAS,31/05/2022,HOTEL EXPENSES,WALES&MID,CORPORATE TRAVEL MANAGEMENTLIMITED,PINV745,93.12
BEIS,ACAS,31/05/2022,PUBLIC TRANSPORT & PARKING,SPPC,CORPORATE TRAVEL MANAGEMENTLIMITED,PINV745,73.35
BEIS,ACAS,31/05/2022,PUBLIC TRANSPORT & PARKING,SPPC,CORPORATE TRAVEL MANAGEMENTLIMITED,PINV745,282.15
BEIS,ACAS,31/05/2022,PUBLIC TRANSPORT & PARKING,FEP,CORPORATE TRAVEL MANAGEMENTLIMITED,PINV745,94.55
BEIS,ACAS,31/05/2022,PUBLIC TRANSPORT & PARKING,DELIVERY,CORPORATE TRAVEL MANAGEMENTLIMITED,PINV745,67.35
BEIS,ACAS,31/05/2022,PUBLIC TRANSPORT & PARKING,SPPC,CORPORATE TRAVEL MANAGEMENTLIMITED,PINV745,253.55
BEIS,ACAS,31/05/2022,PUBLIC TRANSPORT & PARKING,DDAT,CORPORATE TRAVEL MANAGEMENTLIMITED,PINV745,236.75
BEIS,ACAS,31/05/2022,PUBLIC TRANSPORT & PARKING,NORTH&MID,CORPORATE TRAVEL MANAGEMENTLIMITED,PINV745,129.45
BEIS,ACAS,31/05/2022,HOTEL EXPENSES,WALES&MID,CORPORATE TRAVEL MANAGEMENTLIMITED,PINV745,111.12
BEIS,ACAS,31/05/2022,HOTEL EXPENSES,WALES&MID,CORPORATE TRAVEL MANAGEMENTLIMITED,PINV745,111.12
BEIS,ACAS,31/05/2022,PUBLIC TRANSPORT & PARKING,CAC,CORPORATE TRAVEL MANAGEMENTLIMITED,PINV745,87.2
BEIS,ACAS,31/05/2022,PUBLIC TRANSPORT & PARKING,NORTH&MID,CORPORATE TRAVEL MANAGEMENTLIMITED,PINV745,28.05
BEIS,ACAS,31/05/2022,PUBLIC TRANSPORT & PARKING,NORTH&MID,CORPORATE TRAVEL MANAGEMENTLIMITED,PINV745,16.35
BEIS,ACAS,31/05/2022,PUBLIC TRANSPORT & PARKING,DELIVERY,CORPORATE TRAVEL MANAGEMENTLIMITED,PINV745,126.15
BEIS,ACAS,31/05/2022,PUBLIC TRANSPORT & PARKING,NORTH&MID,CORPORATE TRAVEL MANAGEMENTLIMITED,PINV745,16.35
BEIS,ACAS,31/05/2022,PUBLIC TRANSPORT & PARKING,NORTH&MID,CORPORATE TRAVEL MANAGEMENTLIMITED,PINV745,16.35
BEIS,ACAS,31/05/2022,PUBLIC TRANSPORT & PARKING,NORTH&MID,CORPORATE TRAVEL MANAGEMENTLIMITED,PINV745,211.52
BEIS,ACAS,31/05/2022,PUBLIC TRANSPORT & PARKING,NORTH&MID,CORPORATE TRAVEL MANAGEMENTLIMITED,PINV745,211.53
BEIS,ACAS,31/05/2022,PUBLIC TRANSPORT & PARKING,DELIVERY,CORPORATE TRAVEL MANAGEMENTLIMITED,PINV745,119.25
BEIS,ACAS,31/05/2022,HOTEL EXPENSES,NORTH&MID,CORPORATE TRAVEL MANAGEMENTLIMITED,PINV745,76.12
BEIS,ACAS,31/05/2022,HOTEL EXPENSES,NORTH&MID,CORPORATE TRAVEL MANAGEMENTLIMITED,PINV745,71.12
BEIS,ACAS,31/05/2022,PUBLIC TRANSPORT & PARKING,SPPC,CORPORATE TRAVEL MANAGEMENTLIMITED,PINV745,50.1
BEIS,ACAS,31/05/2022,HOTEL EXPENSES,STRATEGY,CORPORATE TRAVEL MANAGEMENTLIMITED,PINV745,92.62
BEIS,ACAS,31/05/2022,HOTEL EXPENSES,SOUTH&LONDON,CORPORATE TRAVEL MANAGEMENTLIMITED,PINV745,180.96
BEIS,ACAS,31/05/2022,HOTEL EXPENSES,SOUTH&LONDON,CORPORATE TRAVEL MANAGEMENTLIMITED,PINV745,180.96
BEIS,ACAS,31/05/2022,PUBLIC TRANSPORT & PARKING,SOUTH&LONDON,CORPORATE TRAVEL MANAGEMENTLIMITED,PINV745,42.05
BEIS,ACAS,31/05/2022,PUBLIC TRANSPORT & PARKING,NORTH&MID,CORPORATE TRAVEL MANAGEMENTLIMITED,PINV745,162.92
BEIS,ACAS,31/05/2022,PUBLIC TRANSPORT & PARKING,NORTH&MID,CORPORATE TRAVEL MANAGEMENTLIMITED,PINV745,162.93
BEIS,ACAS,31/05/2022,PUBLIC TRANSPORT & PARKING,NORTH&MID,CORPORATE TRAVEL MANAGEMENTLIMITED,PINV745,6.45
BEIS,ACAS,31/05/2022,PUBLIC TRANSPORT & PARKING,SPPC,CORPORATE TRAVEL MANAGEMENTLIMITED,PINV745,301.25
BEIS,ACAS,31/05/2022,PUBLIC TRANSPORT & PARKING,STRATEGY,CORPORATE TRAVEL MANAGEMENTLIMITED,PINV745,166.05
BEIS,ACAS,31/05/2022,PUBLIC TRANSPORT & PARKING,SOUTH&LONDON,CORPORATE TRAVEL MANAGEMENTLIMITED,PINV745,169.15
BEIS,ACAS,31/05/2022,PUBLIC TRANSPORT & PARKING,NORTH&MID,CORPORATE TRAVEL MANAGEMENTLIMITED,PINV745,43.75
BEIS,ACAS,31/05/2022,PUBLIC TRANSPORT & PARKING,DELIVERY,CORPORATE TRAVEL MANAGEMENTLIMITED,PINV745,146.85
BEIS,ACAS,31/05/2022,PUBLIC TRANSPORT & PARKING,SPPC,CORPORATE TRAVEL MANAGEMENTLIMITED,PINV745,344.25
BEIS,ACAS,31/05/2022,PUBLIC TRANSPORT & PARKING,NORTH&MID,CORPORATE TRAVEL MANAGEMENTLIMITED,PINV745,91.95
BEIS,ACAS,31/05/2022,PUBLIC TRANSPORT & PARKING,SOUTH&LONDON,CORPORATE TRAVEL MANAGEMENTLIMITED,PINV745,129.95
BEIS,ACAS,31/05/2022,PUBLIC TRANSPORT & PARKING,DELIVERY,CORPORATE TRAVEL MANAGEMENTLIMITED,PINV745,12.65
BEIS,ACAS,31/05/2022,PUBLIC TRANSPORT & PARKING,ODHR,CORPORATE TRAVEL MANAGEMENTLIMITED,PINV745,292.25
BEIS,ACAS,31/05/2022,PUBLIC TRANSPORT & PARKING,NORTH&MID,CORPORATE TRAVEL MANAGEMENTLIMITED,PINV745,104.95
BEIS,ACAS,31/05/2022,PUBLIC TRANSPORT & PARKING,ODHR,CORPORATE TRAVEL MANAGEMENTLIMITED,PINV745,149.45
BEIS,ACAS,31/05/2022,PUBLIC TRANSPORT & PARKING,SOUTH&LONDON,CORPORATE TRAVEL MANAGEMENTLIMITED,PINV745,-31.7
BEIS,ACAS,31/05/2022,PUBLIC TRANSPORT & PARKING,NORTH&MID,CORPORATE TRAVEL MANAGEMENTLIMITED,PINV745,44.05
BEIS,ACAS,31/05/2022,PUBLIC TRANSPORT & PARKING,DELIVERY,CORPORATE TRAVEL MANAGEMENTLIMITED,PINV745,14.65
BEIS,ACAS,31/05/2022,HOTEL EXPENSES,WALES&MID,CORPORATE TRAVEL MANAGEMENTLIMITED,PINV745,1.12
BEIS,ACAS,31/05/2022,HOTEL EXPENSES,WALES&MID,CORPORATE TRAVEL MANAGEMENTLIMITED,PINV745,1.12
BEIS,ACAS,31/05/2022,PUBLIC TRANSPORT & PARKING,NORTH&MID,CORPORATE TRAVEL MANAGEMENTLIMITED,PINV745,259.25
BEIS,ACAS,31/05/2022,PUBLIC TRANSPORT & PARKING,NORTH&MID,CORPORATE TRAVEL MANAGEMENTLIMITED,PINV745,74.65
BEIS,ACAS,31/05/2022,PUBLIC TRANSPORT & PARKING,NORTH&MID,CORPORATE TRAVEL MANAGEMENTLIMITED,PINV745,-6.9
BEIS,ACAS,31/05/2022,PUBLIC TRANSPORT & PARKING,DELIVERY,CORPORATE TRAVEL MANAGEMENTLIMITED,PINV745,-17.5
BEIS,ACAS,31/05/2022,PUBLIC TRANSPORT & PARKING,DELIVERY,CORPORATE TRAVEL MANAGEMENTLIMITED,PINV745,-17.5
BEIS,ACAS,31/05/2022,PUBLIC TRANSPORT & PARKING,NORTH&MID,CORPORATE TRAVEL MANAGEMENTLIMITED,PINV745,-108.2
BEIS,ACAS,31/05/2022,PUBLIC TRANSPORT & PARKING,NORTH&MID,CORPORATE TRAVEL MANAGEMENTLIMITED,PINV745,99.95
BEIS,ACAS,31/05/2022,PUBLIC TRANSPORT & PARKING,DDAT,CORPORATE TRAVEL MANAGEMENTLIMITED,PINV745,68.85
BEIS,ACAS,31/05/2022,PUBLIC TRANSPORT & PARKING,ODHR,CORPORATE TRAVEL MANAGEMENTLIMITED,PINV745,120.25
BEIS,ACAS,31/05/2022,PUBLIC TRANSPORT & PARKING,ODHR,CORPORATE TRAVEL MANAGEMENTLIMITED,PINV745,143.75
BEIS,ACAS,29/04/2022,RECOGNITION PAYMENTS,CENTRE,EDENRED (UK GROUP ) LTD,PINV747,14660
BEIS,ACAS,31/05/2022,OCCUPATIONAL HEALTH SERVICE,ODHR,TP HEALTH LTD,PINV748,259.6
BEIS,ACAS,09/06/2022,MOBILE PHONES,DDAT,TELEFONICA UK LTD (O2),PINV749,5169.09
BEIS,ACAS,09/06/2022,MOBILE PHONES,DDAT,TELEFONICA UK LTD (O2),PINV749,574.34
BEIS,ACAS,31/05/2022,OCCUPATIONAL HEALTH SERVICE,ODHR,TP HEALTH LTD,PINV750,3168
BEIS,ACAS,10/06/2022,VENUE HIRE (REC VAT),SOUTH&LONDON,CALDER CONFERENCES LTD,PINV753,800
BEIS,ACAS,10/06/2022,VENUE HIRE (REC VAT),SOUTH&LONDON,CALDER CONFERENCES LTD,PINV753,150
BEIS,ACAS,10/06/2022,VENUE HIRE (REC VAT),NORTH&MID,CALDER CONFERENCES LTD,PINV753,468
BEIS,ACAS,10/06/2022,CATERING,NORTH&MID,CALDER CONFERENCES LTD,PINV753,33
BEIS,ACAS,10/06/2022,CATERING,NORTH&MID,CALDER CONFERENCES LTD,PINV753,83.4
BEIS,ACAS,10/06/2022,VENUE HIRE (REC VAT),SOUTH&LONDON,CALDER CONFERENCES LTD,PINV753,420
BEIS,ACAS,10/06/2022,VENUE HIRE (REC VAT),SOUTH&LONDON,CALDER CONFERENCES LTD,PINV753,360
BEIS,ACAS,10/06/2022,VENUE HIRE (REC VAT),NORTH&MID,CALDER CONFERENCES LTD,PINV753,220
BEIS,ACAS,10/06/2022,CATERING,NORTH&MID,CALDER CONFERENCES LTD,PINV753,59.4
BEIS,ACAS,10/06/2022,CATERING,NORTH&MID,CALDER CONFERENCES LTD,PINV753,102
BEIS,ACAS,10/06/2022,CATERING,NORTH&MID,CALDER CONFERENCES LTD,PINV753,102
BEIS,ACAS,10/06/2022,VENUE HIRE (REC VAT),NORTH&MID,CALDER CONFERENCES LTD,PINV753,30
BEIS,ACAS,10/06/2022,VENUE HIRE (REC VAT),SOUTH&LONDON,CALDER CONFERENCES LTD,PINV753,192
BEIS,ACAS,10/06/2022,VENUE HIRE (REC VAT),SOUTH&LONDON,CALDER CONFERENCES LTD,PINV753,1200
BEIS,ACAS,10/06/2022,PROFESSIONAL FEES,CO,T C YOUNG LLP,PINV754,1250
BEIS,ACAS,31/05/2022,PROFESSIONAL FEES,DDAT,TISSKI LTD,PINV756,7752
BEIS,ACAS,01/06/2022,PROFESSIONAL FEES,DDAT,TISSKI LTD,PINV757,6340
BEIS,ACAS,01/06/2022,Lease Liability,FEP,GOVERNMENT PROPERTY AGENCY,PINV758,5230.99
BEIS,ACAS,01/06/2022,Lease Liability,FEP,GOVERNMENT PROPERTY AGENCY,PINV758,107262.6
BEIS,ACAS,01/06/2022,RATES,FEP,GOVERNMENT PROPERTY AGENCY,PINV758,2358.39
BEIS,ACAS,01/06/2022,RATES,FEP,GOVERNMENT PROPERTY AGENCY,PINV758,48349.11
BEIS,ACAS,01/06/2022,SERVICE CHARGES,FEP,GOVERNMENT PROPERTY AGENCY,PINV758,2791.06
BEIS,ACAS,01/06/2022,SERVICE CHARGES,FEP,GOVERNMENT PROPERTY AGENCY,PINV758,57241.44
BEIS,ACAS,01/06/2022,FACILITIES MANAGEMENT,FEP,GOVERNMENT PROPERTY AGENCY,PINV758,19.21
BEIS,ACAS,01/06/2022,FACILITIES MANAGEMENT,FEP,GOVERNMENT PROPERTY AGENCY,PINV758,406.19
BEIS,ACAS,01/06/2022,PROFESSIONAL FEES,FEP,GOVERNMENT PROPERTY AGENCY,PINV758,301.76
BEIS,ACAS,01/06/2022,PROFESSIONAL FEES,FEP,GOVERNMENT PROPERTY AGENCY,PINV758,6194.7
BEIS,ACAS,01/06/2022,SERVICE CHARGES,FEP,GOVERNMENT PROPERTY AGENCY,PINV758,-561.13
BEIS,ACAS,01/06/2022,SERVICE CHARGES,FEP,GOVERNMENT PROPERTY AGENCY,PINV758,-11505.92
BEIS,ACAS,09/06/2022,PROFESSIONAL FEES,FEP,GOVERNMENT PROPERTY AGENCY,PINV759,4353
BEIS,ACAS,09/06/2022,SERVICE CHARGES,FEP,GOVERNMENT PROPERTY AGENCY,PINV759,12240.15
BEIS,ACAS,09/06/2022,RATES,FEP,GOVERNMENT PROPERTY AGENCY,PINV759,8455
BEIS,ACAS,09/06/2022,Lease Liability,FEP,GOVERNMENT PROPERTY AGENCY,PINV759,19519.8
BEIS,ACAS,13/06/2022,PAYROLL ERROR SUSPENSE,DELIVERY,CIVIL SERVICE AND ROYAL PENSIONS,PINV760,5865.17
BEIS,ACAS,13/06/2022,GRADE 6 SUPERANNUATION,DELIVERY,CIVIL SERVICE AND ROYAL PENSIONS,PINV760,1291.88
BEIS,ACAS,09/06/2022,RATES,FEP,GOVERNMENT PROPERTY AGENCY,PINV761,7783.23
BEIS,ACAS,09/06/2022,Lease Liability,FEP,GOVERNMENT PROPERTY AGENCY,PINV761,17968.91
BEIS,ACAS,09/06/2022,RATES,FEP,GOVERNMENT PROPERTY AGENCY,PINV761,8455
BEIS,ACAS,09/06/2022,Lease Liability,FEP,GOVERNMENT PROPERTY AGENCY,PINV761,19519.8
BEIS,ACAS,11/05/2022,PUBLICITY,STRATEGY,PULSAR,PINV762,14892
BEIS,ACAS,07/06/2022,PROFESSIONAL FEES,FEP,GOVERNMENT PROPERTY AGENCY,PINV763,8469.42
BEIS,ACAS,07/06/2022,SERVICE CHARGES,FEP,GOVERNMENT PROPERTY AGENCY,PINV763,31058.04
BEIS,ACAS,07/06/2022,FACILITIES MANAGEMENT,FEP,GOVERNMENT PROPERTY AGENCY,PINV763,41995.18
BEIS,ACAS,07/06/2022,RATES,FEP,GOVERNMENT PROPERTY AGENCY,PINV763,29056
BEIS,ACAS,07/06/2022,Lease Liability,FEP,GOVERNMENT PROPERTY AGENCY,PINV763,107421.3
BEIS,ACAS,06/06/2022,PROFESSIONAL FEES,FEP,GOVERNMENT PROPERTY AGENCY,PINV764,708
BEIS,ACAS,06/06/2022,PROFESSIONAL FEES,FEP,GOVERNMENT PROPERTY AGENCY,PINV764,6046.25
BEIS,ACAS,06/06/2022,RATES,FEP,GOVERNMENT PROPERTY AGENCY,PINV764,10327.25
BEIS,ACAS,06/06/2022,Lease Liability,FEP,GOVERNMENT PROPERTY AGENCY,PINV764,33099
BEIS,ACAS,06/06/2022,SERVICE CHARGES,FEP,GOVERNMENT PROPERTY AGENCY,PINV764,10518.5
BEIS,ACAS,06/06/2022,FACILITIES MANAGEMENT,FEP,GOVERNMENT PROPERTY AGENCY,PINV764,29302.5
BEIS,ACAS,01/06/2022,PROFESSIONAL FEES,FEP,GOVERNMENT PROPERTY AGENCY,PINV765,4353
BEIS,ACAS,01/06/2022,SERVICE CHARGES,FEP,GOVERNMENT PROPERTY AGENCY,PINV765,15483.75
BEIS,ACAS,01/06/2022,RATES,FEP,GOVERNMENT PROPERTY AGENCY,PINV765,2875
BEIS,ACAS,01/06/2022,Lease Liability,FEP,GOVERNMENT PROPERTY AGENCY,PINV765,9634.5
BEIS,ACAS,01/06/2022,PROFESSIONAL FEES,FEP,GOVERNMENT PROPERTY AGENCY,PINV766,2545.79
BEIS,ACAS,01/06/2022,SERVICE CHARGES,FEP,GOVERNMENT PROPERTY AGENCY,PINV766,253.38
BEIS,ACAS,01/06/2022,FACILITIES MANAGEMENT,FEP,GOVERNMENT PROPERTY AGENCY,PINV766,1937.6
BEIS,ACAS,01/06/2022,RATES,FEP,GOVERNMENT PROPERTY AGENCY,PINV766,1332.79
BEIS,ACAS,01/06/2022,Lease Liability,FEP,GOVERNMENT PROPERTY AGENCY,PINV766,4427
BEIS,ACAS,01/06/2022,PROFESSIONAL FEES,FEP,GOVERNMENT PROPERTY AGENCY,PINV767,4353
BEIS,ACAS,01/06/2022,SERVICE CHARGES,FEP,GOVERNMENT PROPERTY AGENCY,PINV767,2793
BEIS,ACAS,01/06/2022,RATES,FEP,GOVERNMENT PROPERTY AGENCY,PINV767,7630.54
BEIS,ACAS,01/06/2022,Lease Liability,FEP,GOVERNMENT PROPERTY AGENCY,PINV767,11012.75
BEIS,ACAS,01/06/2022,FACILITIES MANAGEMENT,FEP,GOVERNMENT PROPERTY AGENCY,PINV768,29302.5
BEIS,ACAS,07/06/2022,PROFESSIONAL FEES,DDAT,W3 PARTNERSHIP LTD,PINV770,2392.94
BEIS,ACAS,01/06/2022,TELEPHONES,DDAT,GTT,PINV771,36306.18
BEIS,ACAS,01/06/2022,TELEPHONES,DDAT,GTT,PINV771,4034.02
BEIS,ACAS,01/06/2022,HOME WORKER TELEPHONE CHRG,DDAT,GTT,PINV772,1232.66
BEIS,ACAS,01/06/2022,HOME WORKER TELEPHONE CHRG,DDAT,GTT,PINV772,136.96
BEIS,ACAS,07/06/2022,PHOTOCOPIERS,DDAT,Canon (UK) Ltd,PINV773,1041.96
BEIS,ACAS,07/06/2022,PHOTOCOPIERS,DDAT,Canon (UK) Ltd,PINV773,115.78
BEIS,ACAS,15/06/2022,FACILITIES MANAGEMENT,FEP,GOVERNMENT PROPERTY AGENCY,PINV774,2091
BEIS,ACAS,16/06/2022,AGENCY STAFF,NORTH&MID,ALEXANDER MANN SOLUTIONS LTD,PINV775,514.01
BEIS,ACAS,16/06/2022,AGENCY STAFF,NORTH&MID,ALEXANDER MANN SOLUTIONS LTD,PINV775,514.01
BEIS,ACAS,23/05/2022,RATES,FEP,GOVERNMENT PROPERTY AGENCY,PINV776,23574.97
BEIS,ACAS,23/05/2022,Lease Liability,FEP,GOVERNMENT PROPERTY AGENCY,PINV776,95654.43
BEIS,ACAS,23/05/2022,SERVICE CHARGES,FEP,GOVERNMENT PROPERTY AGENCY,PINV776,12448.23
BEIS,ACAS,23/05/2022,FACILITIES MANAGEMENT,FEP,GOVERNMENT PROPERTY AGENCY,PINV776,47615.51
BEIS,ACAS,23/05/2022,FACILITIES MANAGEMENT,FEP,GOVERNMENT PROPERTY AGENCY,PINV776,6175.62
BEIS,ACAS,08/06/2022,PROFESSIONAL FEES,FEP,GOVERNMENT PROPERTY AGENCY,PINV777,3158.54
BEIS,ACAS,08/06/2022,PROFESSIONAL FEES,FEP,GOVERNMENT PROPERTY AGENCY,PINV777,708
BEIS,ACAS,08/06/2022,RATES,FEP,GOVERNMENT PROPERTY AGENCY,PINV777,7982.25
BEIS,ACAS,08/06/2022,Lease Liability,FEP,GOVERNMENT PROPERTY AGENCY,PINV777,32387.63
BEIS,ACAS,08/06/2022,SERVICE CHARGES,FEP,GOVERNMENT PROPERTY AGENCY,PINV777,4149.41
BEIS,ACAS,08/06/2022,FACILITIES MANAGEMENT,FEP,GOVERNMENT PROPERTY AGENCY,PINV777,2091
BEIS,ACAS,08/06/2022,FACILITIES MANAGEMENT,FEP,GOVERNMENT PROPERTY AGENCY,PINV777,15871.84
BEIS,ACAS,12/06/2022,GOVT SOLICITORS FEES,DELIVERY,GOVERNMENT LEGAL DEPARTMENT,PINV778,462.96
BEIS,ACAS,12/06/2022,GOVT SOLICITORS FEES,ODHR,GOVERNMENT LEGAL DEPARTMENT,PINV778,17148.05
BEIS,ACAS,16/06/2022,CHILDCARE VOUCHERS,FEP,EDENRED CHILDCARE VOUCHERS LTD,PINV779,2019
BEIS,ACAS,16/05/2022,PUBLICITY,STRATEGY,HH GLOBAL,PINV782,14165.34
BEIS,ACAS,20/06/2022,OCCUPATIONAL HEALTH SERVICE,ODHR,HEALTH MANAGEMENT LTD,PINV786,1272
BEIS,ACAS,17/06/2022,RECOGNITION PAYMENTS,CENTRE,EDENRED (UK GROUP ) LTD,PINV787,2970
BEIS,ACAS,16/06/2022,RECOGNITION PAYMENTS,CENTRE,EDENRED (UK GROUP ) LTD,PINV788,7700
BEIS,ACAS,20/06/2022,PROFFESIONAL/SPECIALIST ADVICE,SPPC,QUANT RESEARCH LTD,PINV790,1920
BEIS,ACAS,23/06/2022,AGENCY STAFF,NORTH&MID,ALEXANDER MANN SOLUTIONS LTD,PINV791,644.69
BEIS,ACAS,28/04/2022,PROFESSIONAL FEES,FEP,GOVERNMENT PROPERTY AGENCY,PINV792,8346
BEIS,ACAS,28/04/2022,SERVICE CHARGES,FEP,GOVERNMENT PROPERTY AGENCY,PINV792,40722.47
BEIS,ACAS,28/04/2022,FACILITIES MANAGEMENT,FEP,GOVERNMENT PROPERTY AGENCY,PINV792,11111.5
BEIS,ACAS,28/04/2022,RATES,FEP,GOVERNMENT PROPERTY AGENCY,PINV792,20944.44
BEIS,ACAS,28/04/2022,Lease Liability,FEP,GOVERNMENT PROPERTY AGENCY,PINV792,86043.05
BEIS,ACAS,24/06/2022,VENUE HIRE (REC VAT),SOUTH&LONDON,CALDER CONFERENCES LTD,PINV795,1050
BEIS,ACAS,24/06/2022,VENUE HIRE (REC VAT),NORTH&MID,CALDER CONFERENCES LTD,PINV795,66.89
BEIS,ACAS,01/06/2022,MEMBERSHIP FEES,ODHR,CIPD ENTERPRISES LTD(SUBSRIPTIONS),PINV796,267
BEIS,ACAS,30/05/2022,FACILITIES MANAGEMENT,FEP,GOVERNMENT PROPERTY AGENCY,PINV797,630.16
BEIS,ACAS,30/05/2022,FACILITIES MANAGEMENT,FEP,GOVERNMENT PROPERTY AGENCY,PINV797,5419.42
BEIS,ACAS,01/06/2022,REFUNDS,CENTRE,AYRSHIRE HOUSING ASSOCIATION,PINV798,6870.06
BEIS,ACAS,23/06/2022,PROFESSIONAL FEES,FEP,GOVERNMENT PROPERTY AGENCY,PINV799,4115.84
BEIS,ACAS,24/06/2022,HIRE CAR COSTS,ODHR,ENTERPRISE RENT-A-CAR,PINV800,107.97
BEIS,ACAS,24/06/2022,HIRE CAR PETROL,ODHR,ENTERPRISE RENT-A-CAR,PINV800,64.77
BEIS,ACAS,24/06/2022,HIRE CAR COSTS,NORTH&MID,ENTERPRISE RENT-A-CAR,PINV800,72.73
BEIS,ACAS,24/06/2022,HIRE CAR COSTS,NORTH&MID,ENTERPRISE RENT-A-CAR,PINV800,84.66
BEIS,ACAS,13/06/2022,SOFTWARE & LICENCES,DELIVERY,ARTICULATE GLOBAL LLC,PINV801,2120.87
BEIS,ACAS,23/06/2022,SOFTWARE & LICENCES,DELIVERY,ZOOM VIDEO COMMUNICATIONS INC,PINV802,96.53
BEIS,ACAS,23/06/2022,SOFTWARE & LICENCES,DELIVERY,ZOOM VIDEO COMMUNICATIONS INC,PINV802,137.9
BEIS,ACAS,23/06/2022,SOFTWARE & LICENCES,ODHR,ZOOM VIDEO COMMUNICATIONS INC,PINV802,13.79
BEIS,ACAS,23/06/2022,SOFTWARE & LICENCES,DELIVERY,ZOOM VIDEO COMMUNICATIONS INC,PINV802,137.9
BEIS,ACAS,23/06/2022,SOFTWARE & LICENCES,DELIVERY,ZOOM VIDEO COMMUNICATIONS INC,PINV802,13.79
BEIS,ACAS,23/06/2022,SOFTWARE & LICENCES,SCOTLAND,ZOOM VIDEO COMMUNICATIONS INC,PINV802,110.32
BEIS,ACAS,23/06/2022,SOFTWARE & LICENCES,NORTH&MID,ZOOM VIDEO COMMUNICATIONS INC,PINV802,68.95
BEIS,ACAS,23/06/2022,SOFTWARE & LICENCES,NORTH&MID,ZOOM VIDEO COMMUNICATIONS INC,PINV802,137.9
BEIS,ACAS,23/06/2022,SOFTWARE & LICENCES,NORTH&MID,ZOOM VIDEO COMMUNICATIONS INC,PINV802,124.11
BEIS,ACAS,23/06/2022,SOFTWARE & LICENCES,NORTH&MID,ZOOM VIDEO COMMUNICATIONS INC,PINV802,110.31
BEIS,ACAS,23/06/2022,SOFTWARE & LICENCES,WALES&MID,ZOOM VIDEO COMMUNICATIONS INC,PINV802,165.48
BEIS,ACAS,23/06/2022,SOFTWARE & LICENCES,WALES&MID,ZOOM VIDEO COMMUNICATIONS INC,PINV802,110.31
BEIS,ACAS,23/06/2022,SOFTWARE & LICENCES,SOUTH&LONDON,ZOOM VIDEO COMMUNICATIONS INC,PINV802,96.53
BEIS,ACAS,23/06/2022,SOFTWARE & LICENCES,SOUTH&LONDON,ZOOM VIDEO COMMUNICATIONS INC,PINV802,151.69
BEIS,ACAS,23/06/2022,SOFTWARE & LICENCES,SOUTH&LONDON,ZOOM VIDEO COMMUNICATIONS INC,PINV802,110.31
BEIS,ACAS,23/06/2022,SOFTWARE & LICENCES,SOUTH&LONDON,ZOOM VIDEO COMMUNICATIONS INC,PINV802,82.74
BEIS,ACAS,23/06/2022,SOFTWARE & LICENCES,NORTH&MID,ZOOM VIDEO COMMUNICATIONS INC,PINV802,13.79
BEIS,ACAS,27/06/2022,PUBLICATIONS AND PERIODICALS,CO,COLLEGE HILL PRESS,PINV803,1440
BEIS,ACAS,27/06/2022,LEARNING RESOURCE MATERIALS,ODHR,MHR INTERNATIONAL UK LTD,PINV804,685.26
BEIS,ACAS,28/06/2022,PROFESSIONAL FEES,DDAT,TISSKI LTD,PINV806,6340
BEIS,ACAS,21/06/2022,PUBLICATIONS AND PERIODICALS,CO,LEXISNEXIS,PINV807,3771
BEIS,ACAS,23/06/2022,SOFTWARE & LICENCES,DDAT,AFD SOFTWARE LTD,PINV808,15000
BEIS,ACAS,29/06/2022,MOBILE PHONES,DDAT,TELEFONICA UK LTD (O2),PINV809,538.28
BEIS,ACAS,29/06/2022,MOBILE PHONES,DDAT,TELEFONICA UK LTD (O2),PINV809,59.81
BEIS,ACAS,22/06/2022,PROFESSIONAL FEES,FEP,GOVERNMENT PROPERTY AGENCY,PINV810,4115.52
BEIS,ACAS,22/06/2022,SERVICE CHARGES,FEP,GOVERNMENT PROPERTY AGENCY,PINV810,20082.31
BEIS,ACAS,22/06/2022,FACILITIES MANAGEMENT,FEP,GOVERNMENT PROPERTY AGENCY,PINV810,5479.65
BEIS,ACAS,29/06/2022,PROFESSIONAL FEES,DELIVERY,BIG BLUE DOOR,PINV811,16560
BEIS,ACAS,27/06/2022,MANAGED SERVICE Off-PAYROLL WK,FEP,MHR INTERNATIONAL UK LTD,PINV813,7074
BEIS,ACAS,22/06/2022,EXTERNAL LEARNING,ODHR,ADVENTURES WITH AGILE,PINV814,954
